bitfinex/quotes_ETHUSD_20250925
["timestamp","ask_amount","ask_price","bid_price","bid_amount"]
[1758818213490,0.001,3978.3,3978.2,0.3749]
[1758818213815,0.001,3978.3,3978.2,0.8288]
[1758818214016,0.001,3978.3,3978.2,0.3749]
[1758818214216,0.001,3978.3,3978.2,3.65791322]
[1758818214616,0.001,3978.3,3978.2,3.63277623]
[1758818214818,0.001,3978.3,3978.2,0.3749]
[1758818215025,0.001,3978.3,3978.2,0.1256]
[1758818215591,0.001,3978.3,3978.2,0.3749]
[1758818215786,0.001,3978.3,3978.2,0.1256]
[1758818216619,6.188,3978.3,3978.2,0.1256]
[1758818216823,6.188,3978.3,3978.2,2.63929966]
[1758818217026,6.188,3978.3,3978.2,0.3749]
[1758818217213,6.188,3978.3,3978.2,0.1256]
[1758818218415,6.188,3978.3,3978.2,0.3749]
[1758818218619,6.188,3978.3,3978.2,8.02016032]
[1758818219237,6.188,3978.3,3978.2,3.67816032]
[1758818219437,6.188,3978.3,3978.2,4.7169]
[1758818219655,6.188,3978.3,3978.2,5.1708]
[1758818219848,6.188,3978.3,3978.2,7.68449966]
[1758818221311,6.188,3978.3,3978.2,0.1256]
[1758818221612,6.188,3978.3,3978.2,0.3749]
[1758818222012,6.188,3978.3,3978.2,2.88859966]
[1758818222212,6.188,3978.3,3978.2,3.34249966]
[1758818222441,6.188,3978.3,3978.2,0.3749]
[1758818222614,6.188,3978.3,3978.2,0.1256]
[1758818223109,6.188,3978.3,3978.2,2.63929966]
[1758818223521,6.188,3978.3,3978.2,2.87259966]
[1758818224044,6.188,3978.3,3978.2,0.1256]
[1758818224359,6.188,3978.3,3978.2,2.63929966]
[1758818224523,6.188,3978.3,3978.2,2.87259966]
[1758818224708,6.188,3978.3,3978.2,7.21359966]
[1758818225150,6.188,3978.3,3978.2,5.1416]
[1758818225350,6.188,3978.3,3978.2,7.21359966]
[1758818226144,6.188,3978.3,3978.2,4.4666]
[1758818226643,21.31756,3978.3,3978.0,0.014]
[1758818226846,13.071463,3978.2,3978.0,0.014]
[1758818227006,6.963126,3978.1,3978.0,0.014]
[1758818227209,10.16168885,3978.1,3978.0,0.014]
[1758818227654,16.34868885,3978.1,3978.0,0.014]
[1758818227847,18.02412982,3978.1,3978.0,0.014]
[1758818228250,24.88696382,3978.1,3978.0,0.014]
[1758818228558,27.88696382,3978.1,3978.0,0.014]
[1758818228761,28.67896382,3978.1,3978.0,0.014]
[1758818228962,29.03646241,3978.1,3978.0,0.014]
[1758818230063,29.03646241,3978.1,3978.0,1e-08]
[1758818230424,29.43075285,3978.1,3978.0,1e-08]
[1758818231159,47.42289938,3978.1,3977.6,0.002]
[1758818231327,6.30601563,3977.7,3977.6,0.002]
[1758818231529,13.09851422,3977.7,3977.6,0.002]
[1758818231855,27.59877422,3977.7,3977.6,0.002]
[1758818232225,9.07531563,3977.7,3977.6,0.002]
[1758818232454,15.52719763,3977.7,3977.6,0.002]
[1758818232653,14.8937386,3977.7,3977.6,0.002]
[1758818232845,16.9887386,3977.7,3977.6,0.002]
[1758818233374,27.7884436,3977.7,3977.6,0.002]
[1758818233580,21.5673436,3977.7,3977.6,0.002]
[1758818233779,28.0023436,3977.7,3977.6,0.002]
[1758818234277,29.27421519,3977.7,3977.6,0.002]
[1758818235781,29.66854866,3977.7,3977.6,0.002]
[1758818236280,9.40758866,3977.7,3977.6,0.002]
[1758818236479,8.83619007,3977.7,3977.6,0.002]
[1758818236667,17.9541006,3977.7,3977.6,0.002]
[1758818237478,6.30626847,3977.3,3977.2,0.002]
[1758818237677,2.5150686,3976.1,3975.5,0.2489]
[1758818237865,2.51477299,3976.6,3975.5,0.2489]
[1758818237866,13.887811,3976.0,3975.5,0.2489]
[1758818238041,3.0,3976.2,3975.6,0.6966]
[1758818238243,3.0,3976.2,3974.5,5.2]
[1758818238244,3.050799,3976.1,3975.7,0.6966]
[1758818238448,7.390799,3976.1,3975.8,0.6966]
[1758818238673,4.34,3976.1,3975.6,0.2489]
[1758818238877,2.51510311,3976.0,3975.6,0.2489]
[1758818239080,4.339,3975.9,3975.6,0.2489]
[1758818239480,0.4604,3977.4,3975.7,0.6966]
[1758818239668,2.51470668,3976.7,3975.8,3.21180472]
[1758818239985,5.51479861,3976.5,3975.9,0.2489]
[1758818240189,15.993547,3976.4,3975.9,0.2489]
[1758818240358,7.360303,3976.3,3976.0,0.2489]
[1758818240566,2.490303,3976.2,3976.1,0.2489]
[1758818240772,4.34,3976.3,3976.2,0.2489]
[1758818241064,9.245476,3976.3,3975.9,0.4477]
[1758818241273,4.34,3976.3,3976.0,0.6966]
[1758818241460,3.0,3976.6,3976.1,0.6966]
[1758818241679,0.382651,3977.3,3976.2,3.23670368]
[1758818241680,0.168751,3977.3,3976.2,3.23670368]
[1758818241867,2.51446952,3977.0,3976.3,0.6966]
[1758818242191,2.51458994,3976.8,3976.4,0.2489]
[1758818242489,12.197102,3976.7,3976.4,0.2489]
[1758818242882,16.536102,3976.7,3976.4,0.2489]
[1758818243078,12.242811,3976.6,3976.4,0.2489]
[1758818243283,6.656996,3976.4,3975.8,0.2489]
[1758818243480,4.339,3976.5,3975.9,2.51712344]
[1758818243713,4.339,3976.5,3976.0,0.2489]
[1758818243860,9.796342,3976.4,3976.0,0.2489]
[1758818244188,12.31119017,3976.4,3976.0,0.2489]
[1758818244363,10.390342,3976.3,3975.9,0.002]
[1758818244566,14.729342,3976.3,3975.9,0.002]
[1758818244886,10.482067,3976.2,3975.9,0.2509]
[1758818245273,12.99704549,3976.2,3975.9,0.002]
[1758818245474,10.952994,3976.1,3975.9,0.002]
[1758818245876,4.339,3976.2,3975.9,0.002]
[1758818246205,9.942994,3976.1,3975.9,0.002]
[1758818246488,9.942994,3976.1,3975.9,0.2509]
[1758818246658,9.942994,3976.1,3975.9,0.002]
[1758818247094,3.7134,3976.1,3975.9,0.002]
[1758818247294,4.4646,3976.2,3975.9,0.2509]
[1758818247504,4.682704,3976.1,3975.9,0.2509]
[1758818247706,4.682704,3976.1,3975.9,0.002]
[1758818247907,7.19773905,3976.1,3975.9,0.002]
[1758818248124,13.82596,3976.0,3975.9,0.002]
[1758818248428,1.16622746,3976.1,3975.9,0.002]
[1758818248575,6.400492,3976.0,3975.9,0.002]
[1758818249303,16.34105054,3976.0,3975.9,0.002]
[1758818249705,16.46665054,3976.0,3975.9,0.002]
[1758818250090,13.95156,3976.0,3975.9,0.002]
[1758818250828,3.4636,3976.0,3975.9,0.2509]
[1758818250991,3.4636,3976.0,3975.9,0.6986]
[1758818251193,2.51468828,3976.7,3975.9,0.6986]
[1758818251397,3.0,3976.8,3975.9,0.6986]
[1758818251398,0.1256,3976.2,3976.0,0.2489]
[1758818251714,0.1256,3976.2,3976.1,0.2489]
[1758818251924,6.3126,3976.2,3976.1,0.2489]
[1758818253413,6.3126,3976.2,3975.9,0.002]
[1758818253414,6.187,3976.2,3975.9,0.5753]
[1758818253609,6.187,3976.2,3976.0,0.2489]
[1758818253809,6.187,3976.2,3975.9,0.5753]
[1758818253810,6.187,3976.2,3975.9,0.002]
[1758818254360,20.01296,3976.1,3975.9,0.002]
[1758818254507,4.83116,3976.0,3975.9,0.002]
[1758818254841,2.489129,3976.0,3975.9,0.002]
[1758818255566,6.3126,3976.1,3975.9,0.002]
[1758818256666,6.3126,3976.1,3976.0,0.2489]
[1758818257153,6.3126,3976.1,3975.9,0.002]
[1758818257154,14.393906,3976.1,3975.9,0.002]
[1758818257461,6.3126,3976.1,3976.0,0.6966]
[1758818257679,8.909854,3976.1,3976.0,0.6966]
[1758818257817,0.4604,3976.8,3976.0,0.6966]
[1758818257818,0.001,3978.1,3976.1,0.792]
[1758818258017,0.001,3978.1,3976.9,2.51445962]
[1758818258227,0.001,3978.1,3977.6,2.51407884]
[1758818258786,0.001,3978.1,3977.6,3.21067884]
[1758818259249,0.001,3978.1,3977.6,0.2489]
[1758818259545,0.001,3978.1,3977.6,2.76297884]
[1758818259754,0.001,3978.1,3977.6,3.9340967]
[1758818259929,0.001,3978.1,3977.6,4.3817967]
[1758818260318,0.001,3978.1,3977.6,4.40693748]
[1758818261252,0.001,3978.1,3977.6,4.3817967]
[1758818261550,0.001,3978.1,3977.6,7.3817967]
[1758818262351,0.001,3978.1,3977.6,8.1737967]
[1758818262560,0.001,3978.1,3977.6,7.3817967]
[1758818263136,0.001,3978.1,3977.6,13.8137967]
[1758818264369,0.001,3978.1,3977.6,13.8349967]
[1758818264553,0.001,3978.1,3977.6,7.4039967]
[1758818264756,0.001,3978.1,3977.6,13.8349967]
[1758818266172,0.001,3978.1,3977.6,7.4039967]
[1758818266393,0.001,3978.1,3977.6,13.8349967]
[1758818267986,0.001,3978.1,3977.6,14.7525967]
[1758818269337,0.001,3978.1,3977.6,14.85338397]
[1758818270072,0.001,3978.1,3977.6,8.42238397]
[1758818270272,0.001,3978.1,3977.6,14.85238397]
[1758818271375,0.001,3978.1,3977.6,7.16048397]
[1758818271557,0.001,3978.1,3977.6,13.9595967]
[1758818272475,0.001,3978.1,3977.6,14.7515967]
[1758818273278,0.001,3978.1,3977.6,14.85238398]
[1758818274986,0.001,3978.1,3977.6,13.81148398]
[1758818275195,0.001,3978.1,3977.6,14.04838398]
[1758818275570,0.001,3978.1,3977.6,11.95238398]
[1758818275897,0.001,3978.1,3977.6,14.04738398]
[1758818276783,0.001,3978.1,3977.6,11.95238398]
[1758818277190,0.001,3978.1,3977.6,14.04738398]
[1758818277981,0.001,3978.1,3977.6,14.83938398]
[1758818278384,0.001,3978.5,3977.9,0.792]
[1758818278616,0.001,3978.5,3978.2,5.63929966]
[1758818278909,0.001,3978.5,3978.2,10.63869966]
[1758818279132,0.001,3978.5,3978.2,11.57186434]
[1758818280474,0.001,3978.5,3978.2,5.74006434]
[1758818280700,0.001,3978.5,3978.2,11.94069966]
[1758818281016,0.4609,3978.5,3978.2,11.94069966]
[1758818281348,0.001,3978.5,3978.2,13.9224396]
[1758818281613,0.001,3978.5,3978.2,14.3923396]
[1758818281794,0.001,3978.5,3978.2,7.2585396]
[1758818281992,0.001,3978.5,3978.2,10.6855396]
[1758818282196,0.4609,3978.5,3978.2,10.6855396]
[1758818282396,0.001,3978.5,3978.2,10.6855396]
[1758818282714,0.001,3978.5,3978.2,4.2585396]
[1758818282881,0.001,3978.5,3978.2,9.20543665]
[1758818283084,0.001,3978.5,3978.2,9.18029966]
[1758818283607,0.001,3978.5,3978.2,2.51369966]
[1758818283813,0.001,3978.5,3978.2,8.96483665]
[1758818283987,0.001,3978.5,3978.2,8.93969966]
[1758818284189,0.001,3978.5,3978.2,10.44289068]
[1758818284589,0.001,3978.5,3978.2,10.20329068]
[1758818284816,0.001,3978.5,3978.2,10.44289068]
[1758818285021,0.001,3978.5,3978.2,10.90569068]
[1758818285240,0.001,3978.5,3978.2,11.00646526]
[1758818286318,0.001,3978.5,3978.2,11.79846526]
[1758818286623,0.001,3978.5,3978.2,14.79846526]
[1758818286829,0.001,3979.1,3979.0,2.51319426]
[1758818286993,0.001,3979.1,3979.0,12.46697279]
[1758818287194,0.001,3979.1,3979.0,13.14424085]
[1758818287600,0.001,3979.1,3979.0,12.68144085]
[1758818288613,0.001,3979.1,3979.0,13.14424085]
[1758818289020,0.001,3979.1,3979.0,13.93624085]
[1758818289193,0.001,3979.1,3979.0,14.40724085]
[1758818289896,0.001,3979.1,3979.0,7.98124085]
[1758818290129,0.001,3979.1,3979.0,20.95124085]
[1758818290330,0.001,3979.1,3979.0,12.31224085]
[1758818290628,0.001,3979.1,3979.0,21.07684085]
[1758818290929,0.001,3979.1,3979.0,20.61404085]
[1758818291128,0.001,3979.1,3979.0,21.08014085]
[1758818291833,0.001,3979.1,3979.0,20.61404085]
[1758818292027,0.001,3979.1,3979.0,16.04344085]
[1758818292222,0.001,3979.1,3979.0,20.37444085]
[1758818292401,0.001,3979.1,3979.0,6.61244085]
[1758818292598,0.001,3979.1,3979.0,13.03744085]
[1758818293013,0.001,3979.1,3979.0,12.56644085]
[1758818293209,0.4542,3979.1,3979.0,12.06379426]
[1758818293725,0.6681,3979.1,3979.0,12.06379426]
[1758818293930,0.6681,3979.1,3979.0,0.1256]
[1758818293931,0.4542,3979.1,3979.0,0.1256]
[1758818294241,0.6681,3979.1,3979.0,4.331]
[1758818294736,0.6681,3979.1,3978.4,2.51356582]
[1758818294938,0.6671,3979.0,3978.5,6.424]
[1758818295237,0.001,3979.1,3978.8,2.51332059]
[1758818295238,0.6671,3978.9,3978.8,2.51332059]
[1758818295421,0.6671,3978.9,3978.8,6.84332059]
[1758818295756,0.4532,3978.9,3978.8,6.84332059]
[1758818296041,0.001,3979.1,3979.0,2.51319426]
[1758818296255,0.001,3979.1,3979.0,6.84319426]
[1758818296532,0.001,3979.1,3979.0,7.08759426]
[1758818297032,0.001,3979.1,3979.0,6.84319426]
[1758818297739,0.4542,3979.1,3979.0,2.51319426]
[1758818298100,0.4542,3979.1,3979.0,8.93719426]
[1758818298101,0.6681,3979.1,3979.0,8.93719426]
[1758818298338,0.4542,3979.1,3979.0,8.93719426]
[1758818299217,0.6681,3979.1,3979.0,8.93719426]
[1758818299416,0.4542,3979.1,3979.0,8.93719426]
[1758818300535,0.001,3979.1,3979.0,8.93719426]
[1758818300733,0.001,3979.1,3979.0,10.08224575]
[1758818301036,0.001,3979.1,3979.0,10.79274575]
[1758818301431,0.001,3979.1,3979.0,14.58474575]
[1758818302433,0.001,3979.5,3979.4,3.30494164]
[1758818302649,0.001,3979.5,3979.4,10.66007105]
[1758818302853,0.001,3979.5,3979.4,12.73380554]
[1758818303024,0.001,3979.5,3979.4,12.83453596]
[1758818304131,0.001,3979.5,3979.4,8.63013596]
[1758818304658,0.001,3979.5,3979.4,21.59713596]
[1758818304829,0.001,3979.5,3979.4,8.63013596]
[1758818305034,0.001,3979.5,3979.4,21.59713596]
[1758818306077,0.001,3979.5,3979.4,21.47153596]
[1758818306224,1e-08,3980.1,3980.0,2.51256281]
[1758818306429,1e-08,3980.1,3980.0,10.88481909]
[1758818306629,1e-08,3980.1,3980.0,11.12921909]
[1758818306957,1e-08,3980.1,3980.0,10.09281909]
[1758818307159,1e-08,3980.1,3980.0,5.76381909]
[1758818307160,0.45320001,3980.1,3980.0,5.76381909]
[1758818307328,0.45320001,3980.1,3980.0,12.18681909]
[1758818307529,7.85710001,3980.1,3980.0,2.51256281]
[1758818307738,7.19000001,3980.1,3980.0,8.93556281]
[1758818309256,7.85710001,3980.1,3980.0,8.93556281]
[1758818309635,7.85710001,3980.1,3980.0,2.51256281]
[1758818309872,7.85710001,3980.1,3980.0,4.60656281]
[1758818310072,7.85710001,3980.1,3980.0,8.93456281]
[1758818310258,7.85710001,3980.1,3980.0,6.422]
[1758818310460,7.85710001,3980.1,3978.9,2.51325535]
[1758818310461,22.46887001,3980.1,3979.3,2.51294323]
[1758818310665,0.6671,3980.0,3979.5,2.51282226]
[1758818310864,0.6671,3980.0,3978.9,2.093]
[1758818310865,0.6671,3979.9,3979.6,4.35312815]
[1758818311174,1e-08,3980.1,3979.6,4.35312815]
[1758818311175,0.6671,3979.8,3979.6,4.35312815]
[1758818311337,0.4532,3979.7,3979.6,4.35312815]
[1758818311543,0.4532,3979.7,3979.6,6.8659435]
[1758818311873,0.21390001,3980.1,3979.8,2.51267919]
[1758818312048,0.6671,3980.0,3979.9,4.35312625]
[1758818312371,0.6671,3980.0,3979.9,4.328]
[1758818312875,0.6671,3980.0,3978.8,2.51326046]
[1758818312876,3.190156,3980.0,3978.8,2.51326046]
[1758818313048,3.190156,3980.0,3978.3,0.2464]
[1758818313049,14.8120756,3979.9,3978.9,7.07920011]
[1758818313256,14.49306,3979.8,3979.0,2.513173]
[1758818313440,0.6671,3979.8,3979.1,4.328]
[1758818313639,0.6671,3979.7,3979.1,6.84111215]
[1758818314050,0.2139,3979.6,3979.1,6.84111215]
[1758818314254,0.6671,3979.5,3979.1,4.328]
[1758818314477,0.6671,3979.4,3979.2,2.51306795]
[1758818314665,0.2139,3979.4,3979.3,4.328]
[1758818315271,0.4532,3979.4,3979.3,6.86613483]
[1758818315486,0.6671,3979.7,3979.3,4.328]
[1758818315689,7.4039,3980.0,3979.4,0.02512941]
[1758818315855,7.19,3980.0,3979.6,2.51277476]
[1758818316183,0.6671,3979.9,3979.7,4.328]
[1758818316387,0.2139,3979.9,3979.8,0.1256]
[1758818316950,0.6671,3979.9,3979.8,0.1256]
[1758818317354,1.45291,3979.9,3979.8,0.1256]
[1758818317584,1.45291,3979.9,3979.6,0.1256]
[1758818317787,1.45291,3979.9,3979.7,3.624]
[1758818317968,1.45291,3979.9,3979.6,4.328]
[1758818317969,0.6671,3979.8,3979.6,4.328]
[1758818318289,15.61444937,3979.6,3978.7,2.094]
[1758818318476,0.6671,3979.7,3978.7,2.094]
[1758818318477,16.70093266,3979.5,3978.8,4.328]
[1758818318676,4.02132466,3979.5,3978.8,4.328]
[1758818318856,0.6671,3979.4,3978.8,4.328]
[1758818319183,0.6671,3979.3,3978.8,4.328]
[1758818319383,4.02132466,3979.5,3978.9,4.328]
[1758818319555,0.6671,3979.2,3979.0,4.328]
[1758818319752,7.8571,3979.1,3979.0,4.328]
[1758818319988,7.8571,3979.1,3978.3,0.002]
[1758818319989,7.8571,3979.1,3978.6,2.51543195]
[1758818320186,0.6671,3979.0,3978.7,4.328]
[1758818320366,0.4532,3978.9,3978.7,6.84137863]
[1758818320562,0.6671,3978.8,3978.7,4.328]
[1758818320764,0.6671,3978.8,3978.6,0.002]
[1758818321084,7.19,3979.1,3978.7,4.328]
[1758818321589,0.6673,3979.0,3978.7,4.328]
[1758818321789,7.19,3979.1,3978.7,4.328]
[1758818322092,0.6673,3979.0,3978.7,4.328]
[1758818322294,0.6673,3978.9,3978.7,4.328]
[1758818323001,7.19,3979.1,3978.7,4.35313383]
[1758818323191,7.19,3979.1,3978.7,4.328]
[1758818323503,7.19,3979.1,3978.7,4.35313383]
[1758818323703,7.6434,3979.1,3978.7,6.86650296]
[1758818323892,7.19,3979.1,3978.7,4.328]
[1758818324086,0.4534,3979.0,3978.7,4.328]
[1758818324690,7.19,3979.1,3978.7,4.328]
[1758818324992,0.4534,3978.9,3978.6,0.002]
[1758818325190,2.51338376,3978.7,3978.6,0.002]
[1758818325371,26.52934376,3978.7,3978.6,0.002]
[1758818325565,27.19664376,3978.7,3978.6,0.002]
[1758818325870,33.09988473,3978.7,3978.6,0.002]
[1758818326605,33.89188473,3978.7,3978.6,0.002]
[1758818327280,3.30557329,3978.4,3978.3,0.002]
[1758818327479,8.39957329,3978.4,3978.3,0.002]
[1758818327701,22.94453329,3978.4,3978.3,0.002]
[1758818328025,3.30582604,3978.0,3976.2,2.094]
[1758818328183,2.51453851,3976.9,3976.3,1.698]
[1758818328379,16.91955689,3976.8,3976.3,1.698]
[1758818328680,17.00791213,3976.7,3976.2,0.1256]
[1758818328881,6.454191,3976.6,3976.2,0.1256]
[1758818329077,0.6673,3976.6,3976.2,0.1256]
[1758818329290,0.12765887,3977.1,3976.3,2.77580451]
[1758818329477,0.25325887,3977.1,3976.4,0.1256]
[1758818329683,2.64000078,3977.1,3976.4,0.1256]
[1758818329990,3.0,3976.9,3976.1,0.002]
[1758818330178,3.0,3976.9,3976.2,0.1256]
[1758818330179,2.489,3976.8,3976.2,0.1256]
[1758818330383,2.9424,3976.8,3976.2,0.1256]
[1758818330577,16.55452237,3976.7,3976.2,0.1256]
[1758818330809,13.82596,3976.6,3976.2,0.1256]
[1758818331012,0.4534,3976.6,3976.2,0.1256]
[1758818331718,3.4534,3977.6,3976.5,2.51473101]
[1758818331881,3.0,3977.6,3976.6,4.58894711]
[1758818332084,3.6673,3978.1,3976.9,2.51447718]
[1758818332306,3.0,3977.9,3977.0,0.2358]
[1758818332481,4.9963,3978.1,3977.1,6.8433786]
[1758818332691,0.719,3978.4,3977.2,0.26094331]
[1758818332891,0.719,3978.4,3977.2,0.2358]
[1758818332892,12.545852,3978.3,3977.2,0.2358]
[1758818333090,3.0,3978.0,3977.1,4.329]
[1758818333322,3.0,3978.0,3977.2,0.02514331]
[1758818333323,0.4534,3978.0,3977.2,0.02514331]
[1758818333525,2.51377115,3978.1,3977.2,0.26094331]
[1758818333823,3.0,3978.0,3977.2,0.26094331]
[1758818334005,8.17427712,3977.9,3977.1,4.329]
[1758818334312,7.19,3977.9,3977.2,0.02514331]
[1758818334516,7.19,3977.9,3977.3,2.5142673]
[1758818334923,7.19,3977.9,3977.2,2.53945448]
[1758818335111,7.19,3977.9,3977.3,2.75005712]
[1758818335525,7.19,3978.0,3977.3,0.2358]
[1758818336022,7.19,3978.0,3977.2,4.58994331]
[1758818336226,7.19,3978.0,3977.2,7.10426739]
[1758818336522,7.19,3978.0,3977.2,7.07912408]
[1758818336826,9.70387403,3978.0,3977.3,0.02514268]
[1758818337185,7.19,3978.0,3977.3,0.02514268]
[1758818337386,2.51398916,3977.8,3976.7,0.2358]
[1758818337614,0.4534,3977.7,3976.8,6.78855986]
[1758818338206,0.4534,3977.7,3976.8,9.30312029]
[1758818338408,0.4534,3977.7,3976.8,6.78855986]
[1758818338790,7.19,3978.0,3977.3,2.51422728]
[1758818338996,7.19,3977.6,3977.5,2.51414204]
[1758818339197,7.19,3977.6,3977.5,0.2358]
[1758818340199,7.19,3977.6,3977.5,2.74994204]
[1758818340601,0.4534,3978.5,3977.7,2.51395453]
[1758818340808,0.4534,3978.5,3977.8,4.329]
[1758818341318,0.4534,3978.5,3977.5,1.19763043]
[1758818341625,7.28816204,3978.4,3977.6,2.362]
[1758818341825,0.1256,3978.2,3977.6,2.4876]
[1758818342634,0.1256,3978.2,3977.7,2.51395317]
[1758818342808,0.1256,3978.2,3977.6,2.4876]
[1758818343123,0.4654,3978.1,3977.5,4.329]
[1758818343330,0.4654,3978.1,3977.5,6.84313615]
[1758818343814,0.4654,3978.1,3977.5,4.329]
[1758818344332,0.4654,3978.1,3977.5,6.84312077]
[1758818344499,0.4654,3978.1,3977.6,2.51407169]
[1758818344697,6.921693,3978.0,3976.5,0.2398]
[1758818344927,2.51409015,3977.6,3976.7,2.51464774]
[1758818345095,2.97955592,3977.5,3976.8,2.148]
[1758818345428,2.51431242,3977.3,3976.8,2.148]
[1758818345633,21.269568,3977.2,3976.8,2.148]
[1758818345835,7.6554,3977.2,3976.8,2.148]
[1758818346126,7.19,3977.2,3976.8,2.148]
[1758818346332,9.91806106,3977.5,3976.8,2.148]
[1758818346623,4.241315,3977.4,3976.8,2.148]
[1758818346823,3.039406,3977.3,3976.8,2.148]
[1758818347027,0.4654,3977.3,3976.8,2.148]
[1758818347203,0.4654,3977.3,3976.7,2.51459713]
[1758818347406,7.19,3977.5,3976.8,2.51458248]
[1758818347796,7.19,3977.5,3976.7,7.10758236]
[1758818347997,7.19,3977.5,3976.7,4.5678]
[1758818348226,14.29136,3977.4,3976.3,0.2398]
[1758818348534,2.51453515,3976.9,3976.1,0.002]
[1758818348733,21.15396,3977.3,3976.1,0.002]
[1758818348734,16.3405584,3976.8,3976.1,0.002]
[1758818348903,13.82596,3976.7,3976.1,4.33]
[1758818349099,13.82596,3976.7,3976.1,0.002]
[1758818349621,0.4654,3976.6,3976.1,0.002]
[1758818349821,8.481012,3976.6,3976.1,0.002]
[1758818350012,0.4654,3976.5,3976.1,0.002]
[1758818350209,4.328,3976.7,3976.1,0.002]
[1758818350714,3.0,3976.9,3976.2,2.51496403]
[1758818350910,3.0,3977.6,3976.3,4.601449]
[1758818351258,2.4932,3977.5,3976.7,2.51459355]
[1758818351558,2.4932,3977.5,3976.5,2.51477429]
[1758818351836,2.9376,3977.5,3976.4,0.2483]
[1758818352001,2.276302,3977.4,3976.6,2.51466436]
[1758818352202,2.276302,3977.4,3976.4,2.76309465]
[1758818352452,2.276302,3977.4,3976.6,2.51466257]
[1758818352771,2.276302,3977.4,3976.5,5.30515505]
[1758818352979,2.276302,3977.4,3976.5,7.81991508]
[1758818353132,0.57,3977.5,3976.8,2.64014426]
[1758818353327,2.086709,3977.4,3976.9,2.5145146]
[1758818353535,4.139508,3977.4,3976.8,0.15074584]
[1758818353880,3.2139,3977.3,3976.8,0.1256]
[1758818354032,2.51445813,3977.0,3976.4,0.1256]
[1758818354360,0.1256,3976.8,3976.2,0.1256]
[1758818354564,16.99895354,3976.7,3976.2,0.1256]
[1758818354861,3.640357,3976.6,3976.2,0.1256]
[1758818355166,3.19522,3976.5,3976.2,0.1256]
[1758818355330,7.6344,3976.6,3976.2,0.1256]
[1758818355679,2.94522,3976.5,3976.2,0.1256]
[1758818355841,7.19,3976.6,3976.5,2.51477429]
[1758818356031,7.19,3976.6,3976.5,5.0421]
[1758818356232,7.19,3976.6,3976.5,7.55687429]
[1758818356469,7.19,3976.6,3976.5,7.55787429]
[1758818356853,7.19,3976.6,3976.5,4.329]
[1758818357050,0.719,3976.6,3976.4,0.1256]
[1758818357251,0.792,3976.4,3976.1,0.002]
[1758818357450,5.51496403,3976.2,3976.1,0.002]
[1758818357703,25.77492403,3976.2,3976.1,0.002]
[1758818357857,27.22422403,3976.2,3976.1,0.002]
[1758818358456,27.62493151,3976.2,3976.1,0.002]
[1758818358655,27.97563457,3976.2,3976.1,0.002]
[1758818359095,28.37322886,3976.2,3976.1,0.002]
[1758818359295,28.76772225,3976.2,3976.1,0.002]
[1758818359682,3.30709054,3976.0,3975.5,0.002]
[1758818359886,20.13305054,3976.0,3975.5,0.002]
[1758818360077,20.79135054,3976.0,3975.5,0.002]
[1758818360273,24.70726,3976.0,3975.5,0.002]
[1758818360589,27.22235054,3976.0,3975.5,0.002]
[1758818361873,3.30734359,3975.6,3975.5,0.002]
[1758818362073,3.30734359,3975.6,3974.2,0.4053]
[1758818362074,0.792,3975.5,3974.2,0.2483]
[1758818362279,2.51599603,3974.6,3973.9,0.4658]
[1758818362500,13.82596,3974.5,3973.9,0.4658]
[1758818362715,13.82596,3974.5,3973.8,0.2483]
[1758818362716,16.34200619,3974.5,3973.8,0.2483]
[1758818362908,4.182318,3974.4,3973.5,0.4658]
[1758818363076,4.182318,3974.4,3973.5,2.98246459]
[1758818363266,4.334,3974.4,3973.6,2.76489244]
[1758818363467,4.658321,3974.3,3973.6,0.2483]
[1758818364326,4.658321,3974.3,3973.6,2.76490913]
[1758818364627,2.323569,3974.3,3973.6,0.2483]
[1758818364801,2.104128,3974.3,3973.8,2.51648296]
[1758818364996,0.792,3974.8,3973.9,3.23050636]
[1758818365333,3.0,3974.9,3974.3,2.51616474]
[1758818365334,0.12619667,3974.9,3974.3,2.51616474]
[1758818365635,0.12619667,3974.9,3974.4,2.76438838]
[1758818365794,2.51554158,3975.3,3974.4,0.2483]
[1758818365795,2.51567157,3975.1,3974.4,0.2483]
[1758818366127,18.21236434,3976.0,3974.5,0.49096039]
[1758818366427,3.0,3975.3,3974.6,0.2483]
[1758818366603,3.0,3975.1,3974.6,0.2483]
[1758818366811,2.51564077,3975.2,3974.6,0.2483]
[1758818367029,6.352194,3975.1,3974.6,0.2483]
[1758818367346,5.419744,3975.1,3974.6,0.2483]
[1758818367498,4.113725,3975.0,3974.6,0.2483]
[1758818368004,0.1256,3975.1,3974.7,0.7141]
[1758818368499,0.1256,3975.1,3974.7,0.2483]
[1758818368700,3.1256,3975.1,3974.7,0.2483]
[1758818368900,0.1256,3975.1,3974.7,0.2483]
[1758818369691,0.1256,3975.1,3974.5,2.51599584]
[1758818369692,0.1256,3975.1,3974.4,4.4596]
[1758818369897,0.1256,3975.1,3974.6,2.76423939]
[1758818370152,0.1256,3975.1,3974.6,0.2483]
[1758818370311,0.57,3975.1,3974.4,4.4596]
[1758818370495,0.57,3975.1,3974.4,6.97570225]
[1758818370718,3.57,3975.1,3974.4,4.4596]
[1758818370921,0.57,3975.1,3974.4,4.4596]
[1758818371109,8.86794517,3975.0,3974.4,4.4596]